bitfinex/quotes_SOLUSD_20240708
["timestamp","ask_amount","ask_price","bid_price","bid_amount"]
[1720481579819,9.79,140.22,140.18,6.1043]
[1720481580023,23.10399298,140.26,140.18,6.1043]
[1720481580024,9.79,140.21,140.18,6.1043]
[1720481580237,9.79,140.2,140.18,6.1043]
[1720481580404,10.23311526,140.26,140.18,6.1043]
[1720481580405,0.17,140.25,140.18,6.1043]
[1720481580722,7.1336,140.18,140.17,16.0987]
[1720481580923,16.9236,140.18,140.14,6.1348]
[1720481581329,16.9236,140.18,140.14,13.2704]
[1720481581510,9.79,140.16,140.14,6.1348]
[1720481581905,9.79,140.16,140.13,41.0747]
[1720481582107,17.8307,140.21,140.13,41.0747]
[1720481582108,9.79,140.14,140.13,16.0987]
[1720481582627,16.9253,140.15,140.13,16.0987]
[1720481582812,9.79,140.14,140.13,16.0987]
[1720481584029,9.79,140.14,140.1,6.6389137]
[1720481584226,9.79,140.12,140.1,0.5445137]
[1720481584413,9.79,140.11,140.1,0.5445137]
[1720481584728,9.79,140.12,140.1,0.5445137]
[1720481585706,9.79,140.13,140.11,7.1368]
[1720481585908,9.79,140.13,140.1,7.6821137]
[1720481586431,9.79,140.13,140.1,0.5445137]
[1720481586633,16.9263,140.13,140.1,0.5445137]
[1720481586828,9.79,140.12,140.1,0.5445137]
[1720481587333,9.79,140.13,140.1,0.5445137]
[1720481587522,16.9252,140.15,140.11,7.1367]
[1720481587705,7.1352,140.15,140.11,7.1367]
[1720481587906,9.79,140.14,140.11,7.1367]
[1720481588123,9.79,140.14,140.1,7.6821137]
[1720481589518,0.17,140.18,140.1,7.6821137]
[1720481589519,9.79,140.13,140.1,0.5445137]
[1720481589836,17.8359,140.17,140.1,0.5445137]
[1720481590137,10.23311526,140.19,140.11,27.6326]
[1720481590338,7.1343,140.17,140.12,7.1365]
[1720481590538,7.1347,140.16,140.12,7.1365]
[1720481590727,7.1352,140.15,140.11,24.9796]
[1720481591540,7.1346,140.17,140.11,24.9796]
[1720481591841,7.1346,140.17,140.12,7.1366]
[1720481592218,7.1348,140.16,140.12,7.1366]
[1720481592739,7.1341,140.17,140.13,13.1404]
[1720481593112,10.23311526,140.19,140.13,6.0045]
[1720481593113,7.1347,140.16,140.13,6.0045]
[1720481594427,7.1354,140.15,140.13,6.0045]
[1720481594734,7.1354,140.15,140.11,17.8426]
[1720481595124,17.8347,140.18,140.1,7.0427137]
[1720481595330,16.9266,140.13,140.1,0.5445137]
[1720481595523,16.9272,140.11,140.1,0.5445137]
[1720481598044,7.1372,140.11,140.1,0.5445137]
[1720481604223,7.1368,140.12,140.1,0.5445137]
[1720481604637,7.1372,140.11,140.1,0.5445137]
[1720481609145,7.1368,140.12,140.1,0.5445137]
[1720481613227,7.1372,140.11,140.1,0.5445137]
[1720481615253,7.1368,140.12,140.1,0.5445137]
[1720481615957,7.1372,140.11,140.1,0.5445137]
[1720481616466,7.1369,140.12,140.1,0.5445137]
[1720481618658,16.9469,140.12,140.1,0.5445137]
[1720481624160,7.1361,140.14,140.1,23.4339137]
[1720481624373,35.18019024,140.18,140.1,23.4339137]
[1720481624374,7.1348,140.16,140.12,7.1366]
[1720481624671,9.81,140.14,140.1,41.2774137]
[1720481624966,9.81,140.13,140.1,34.1398137]
[1720481625154,7.1364,140.13,140.1,16.2963137]
[1720481626051,9.81,140.15,140.11,0.17]
[1720481626443,9.81,140.15,140.1,16.2963137]
[1720481626645,9.81,140.14,140.1,16.2963137]
[1720481627371,9.81,140.14,140.1,23.4337137]
[1720481627969,9.81,140.14,140.1,16.2963137]
[1720481628172,16.9457,140.14,140.1,16.2963137]
[1720481628544,16.9457,140.14,140.1,23.4338137]
[1720481629361,9.81,140.12,140.1,16.2963137]
[1720481630351,7.1358,140.14,140.1,23.4338137]
[1720481630352,9.81,140.14,140.1,23.4338137]
[1720481630944,9.81,140.14,140.11,7.1371]
[1720481632372,9.81,140.14,140.1,23.4340137]
[1720481632573,9.81,140.13,140.1,16.2963137]
[1720481632798,16.9463,140.13,140.1,16.2963137]
[1720481634959,9.81,140.12,140.1,16.2963137]
[1720481635151,16.9468,140.12,140.1,0.5445137]
[1720481635347,16.9472,140.11,140.1,0.5445137]
[1720481636770,9.81,140.11,140.1,0.5445137]
[1720481636973,79.87930278,140.16,140.1,0.5445137]
[1720481637264,20.0,140.15,140.1,0.5445137]
[1720481637474,12.87950701,140.14,140.1,0.5445137]
[1720481637684,7.1365,140.13,140.1,0.5445137]
[1720481638165,20.0,140.15,140.1,0.5445137]
[1720481638387,7.1372,140.11,140.1,0.5445137]
[1720481639089,20.01953336,140.11,140.1,0.5445137]
[1720481640063,20.01893945,140.11,140.1,0.5445137]
[1720481640481,7.1372,140.11,140.1,0.5445137]
[1720481640799,20.01888433,140.11,140.1,0.5445137]
[1720481641006,7.1372,140.11,140.1,0.5445137]
[1720481641370,20.01888433,140.11,140.1,0.5445137]
[1720481641698,7.1372,140.11,140.1,0.5445137]
[1720481642395,20.01847553,140.11,140.1,0.5445137]
[1720481642770,7.1368,140.12,140.1,0.5445137]
[1720481642968,16.9468,140.12,140.1,0.5445137]
[1720481643171,16.9472,140.11,140.1,0.5445137]
[1720481643872,29.82866514,140.11,140.1,0.5445137]
[1720481644797,16.9472,140.11,140.1,0.5445137]
[1720481647168,9.81,140.11,140.1,0.5445137]
[1720481647370,7.1365,140.13,140.1,0.5445137]
[1720481647599,9.81,140.11,140.1,0.5445137]
[1720481647905,9.81,140.12,140.1,0.5445137]
[1720481648117,7.1353,140.15,140.1,7.6817137]
[1720481648398,7.1357,140.14,140.1,7.6822137]
[1720481649196,8.71859901,140.17,140.1,18.3880137]
[1720481649397,22.68819577,140.16,140.11,9.98]
[1720481649582,16.945,140.16,140.11,0.17]
[1720481649776,16.9453,140.15,140.11,7.3071]
[1720481650273,9.81,140.15,140.1,28.1980137]
[1720481650472,9.81,140.13,140.1,18.3880137]
[1720481651503,9.81,140.12,140.1,0.5445137]
[1720481651694,17.8359,140.17,140.1,0.5445137]
[1720481651695,9.81,140.11,140.1,0.5445137]
[1720481651893,16.9472,140.11,140.1,0.5445137]
[1720481652700,9.81,140.11,140.1,0.5445137]
[1720481652905,16.9469,140.12,140.1,0.5445137]
[1720481655109,16.9472,140.11,140.1,0.5445137]
[1720481664620,7.1372,140.11,140.1,0.5445137]
[1720481664908,27.1372,140.11,140.1,0.5445137]
[1720481665112,27.4772,140.11,140.1,0.5445137]
[1720481666278,27.3072,140.11,140.1,0.5445137]
[1720481666695,27.1372,140.11,140.1,0.5445137]
[1720481666995,7.1372,140.11,140.1,0.5445137]
[1720481667191,16.9472,140.11,140.1,0.5445137]
[1720481667391,9.81,140.11,140.1,0.5445137]
[1720481667601,16.9472,140.11,140.1,0.5445137]
[1720481678686,7.1423,140.01,140.0,16.3324]
[1720481679000,16.9519,140.02,140.0,16.3324]
[1720481679183,7.1419,140.02,140.0,16.3324]
[1720481679390,9.81,140.01,140.0,16.3324]
[1720481680693,7.1419,140.02,140.0,16.3324]
[1720481680906,9.81,140.01,140.0,16.3324]
[1720481681112,9.81,140.01,139.97,7.144]
[1720481681314,9.81,139.98,139.96,0.8678871]
[1720481681613,9.98,139.97,139.96,0.8678871]
[1720481681810,6.8132155,139.98,139.96,0.8678871]
[1720481682009,9.81,139.97,139.96,0.8678871]
[1720481682494,6.8132155,139.98,139.96,0.8678871]
[1720481682697,9.81,139.97,139.96,0.8678871]
[1720481683296,20.77193053,139.97,139.96,0.8678871]
[1720481683706,40.77193053,139.97,139.96,0.8678871]
[1720481683916,52.54649795,139.97,139.96,0.8678871]
[1720481684594,62.40649795,139.97,139.96,0.8678871]
[1720481686091,6.6142,139.96,139.83,6.099]
[1720481686404,0.17,139.95,139.87,17.8727]
[1720481686618,0.17,139.95,139.87,25.0221]
[1720481686913,0.17,139.95,139.87,17.8727]
[1720481687117,0.17,139.95,139.83,23.9766]
[1720481687332,10.28637497,139.95,139.83,23.9766]
[1720481687612,10.28637497,139.95,139.87,7.1492]
[1720481688299,10.28637497,139.95,139.88,7.1489]
[1720481688916,10.11637497,139.95,139.9,16.1986]
[1720481689095,10.11637497,139.95,139.9,22.8646]
[1720481689417,27.1161106,140.0,139.91,18.0375]
[1720481689602,7.4461106,140.0,139.93,17.8651]
[1720481689923,9.76462298,140.01,139.94,7.1455]
[1720481690124,9.76462298,140.01,139.93,17.8651]
[1720481690507,9.76462298,140.01,139.93,25.0114]
[1720481690909,9.76462298,140.01,139.95,7.1453]
[1720481691222,9.76462298,140.01,139.93,17.8651]
[1720481691599,9.76462298,140.01,139.94,0.17]
[1720481692322,9.76462298,140.01,139.94,7.3157]
[1720481694924,0.17,140.02,139.94,7.3157]
[1720481695124,27.11192351,140.03,139.95,17.8628]
[1720481695306,26.228,140.06,139.96,0.17]
[1720481695505,9.76462298,140.07,139.98,23.3423]
[1720481695710,17.20565914,140.07,139.98,23.3423]
[1720481695918,17.20565914,140.07,139.99,7.1429]
[1720481696107,17.20565914,140.07,139.98,16.3686]
[1720481696306,26.310923,140.07,139.98,16.1986]
[1720481696614,9.10526386,140.06,139.98,23.3423]
[1720481697426,17.20565914,140.07,139.98,23.3423]
[1720481698014,19.67,139.99,139.9,7.1476]
[1720481699002,26.2988,139.99,139.9,7.1476]
[1720481699201,26.2988,139.99,139.88,17.8719]
[1720481699202,20.17,139.98,139.88,17.8719]
[1720481700523,20.0,139.98,139.91,7.1474]
[1720481700909,20.0,139.98,139.9,17.8693]
[1720481700910,20.0,139.98,139.9,25.0171]
[1720481701104,20.0,139.98,139.87,40.1306]
[1720481701105,0.17,139.97,139.87,40.1306]
[1720481701305,19.67,139.96,139.87,40.1306]
[1720481701824,19.67,139.96,139.87,47.2799]
[1720481702029,19.67,139.96,139.87,40.1306]
[1720481702215,19.67,139.96,139.89,7.1484]
[1720481702411,0.17,139.97,139.91,7.1473]
[1720481702617,20.0,139.98,139.87,58.0028]
[1720481702921,20.0,139.98,139.88,20.0]
[1720481703231,19.67,140.0,139.92,7.1467]
[1720481703546,19.59210905,140.01,139.93,7.1462]
[1720481703705,19.59210905,140.01,139.92,25.1832]
[1720481704034,19.59210905,140.01,139.89,17.8707]
[1720481704215,19.59210905,140.01,139.9,20.0]
[1720481704529,19.59210905,140.01,139.9,27.1478]
[1720481704726,0.34,140.0,139.9,27.1478]
[1720481704923,40.65433128,140.0,139.91,7.1473]
[1720481705528,40.65433128,140.0,139.9,20.0]
[1720481705529,40.31433128,140.0,139.9,20.0]
[1720481705721,40.31433128,140.0,139.91,7.3171]
[1720481705923,40.31433128,140.0,139.92,7.1467]
[1720481706112,40.31433128,140.0,139.93,7.1464]
[1720481706432,30.4868452,140.0,139.93,7.1464]
[1720481707843,30.4868452,140.0,139.91,18.038]
[1720481708134,10.4868452,140.0,139.93,17.8656]
[1720481708335,10.4868452,140.0,139.94,0.17]
[1720481708549,10.4868452,140.0,139.93,17.8656]
[1720481710353,10.4868452,140.0,139.92,0.17]
[1720481710713,10.4868452,140.0,139.92,7.3168]
[1720481711743,10.4868452,140.0,139.92,7.1468]
[1720481712633,19.67,140.0,139.87,58.0027]
[1720481712830,20.0,139.99,139.93,7.146]
[1720481713033,20.0,139.99,139.92,7.1469]
[1720481713535,20.0,139.99,139.93,7.1463]
[1720481713709,20.0,139.99,139.92,7.1468]
[1720481716748,0.17,139.98,139.91,17.8682]
[1720481717037,0.34,139.98,139.88,7.1486]
[1720481717919,19.67,139.97,139.88,7.1486]
[1720481718240,20.17,139.96,139.88,7.1489]
[1720481718420,26.7956,139.96,139.87,41.1981]
[1720481718824,26.7956,139.96,139.87,17.8725]
[1720481719131,26.7956,139.96,139.86,7.1499]
[1720481719513,26.7956,139.96,139.86,6.6499]
[1720481719714,19.84,139.94,139.84,25.027]
[1720481719908,20.0,139.93,139.84,25.027]
[1720481720111,0.17,139.92,139.84,17.8765]
[1720481720330,0.17,139.92,139.82,0.8678871]
[1720481720640,0.17,139.92,139.83,7.1514]
[1720481721021,19.84,139.9,139.82,0.8678871]
[1720481721334,20.0,139.89,139.82,0.8678871]
[1720481721513,0.17,139.88,139.82,0.8678871]
[1720481721717,0.34,139.88,139.82,0.8678871]
[1720481722239,0.17,139.84,139.77,0.04239412]
[1720481722618,20.0,139.84,139.77,0.04239412]
[1720481722818,0.17,139.84,139.77,0.04239412]
[1720481723138,20.17,139.84,139.77,0.04239412]
[1720481723344,0.17,139.82,139.77,0.04239412]
[1720481723713,19.67,139.83,139.77,0.04239412]
[1720481723915,20.0,139.84,139.77,0.04239412]
[1720481724546,20.0,139.84,139.77,7.19679412]
[1720481724740,20.0,139.84,139.77,0.04239412]
[1720481725125,20.0,139.84,139.77,7.19689412]
[1720481725320,20.0,139.84,139.77,17.92819412]
[1720481725527,20.0,139.84,139.78,7.1537]
[1720481725744,20.0,139.85,139.78,7.1537]
[1720481726052,20.0,139.85,139.77,25.08269412]
[1720481726341,20.0,139.85,139.77,0.04239412]
[1720481726515,0.17,139.84,139.77,0.04239412]
[1720481727026,0.34,139.84,139.77,0.04239412]
[1720481728240,0.17,139.82,139.77,0.04239412]
[1720481728448,20.34,139.82,139.77,0.04239412]
[1720481728819,0.17,139.8,139.77,0.04239412]
[1720481731140,0.17,139.8,139.68,0.8678871]
[1720481731336,0.17,139.76,139.68,0.8678871]
[1720481731517,6.3884,139.75,139.68,36.6626871]
[1720481731718,12.9562,139.79,139.71,7.1575]
[1720481732022,6.3884,139.79,139.72,17.892]
[1720481732221,6.3884,139.79,139.72,25.049]
[1720481732521,6.3884,139.79,139.72,17.392]
[1720481732949,6.3884,139.79,139.71,7.1575]
[1720481733154,0.17,139.78,139.69,17.8959]
[1720481733352,0.34,139.78,139.7,27.1581]
[1720481733849,0.34,139.78,139.7,20.0]
[1720481734056,0.34,139.78,139.7,7.1581]
[1720481734227,20.34,139.78,139.7,7.1581]
[1720481735043,20.17,139.78,139.71,25.0508]
[1720481735345,20.17,139.78,139.71,17.8933]
[1720481735643,20.17,139.78,139.68,18.7651871]
[1720481735844,0.17,139.77,139.69,27.1586]
[1720481736148,20.17,139.78,139.7,17.8945]
[1720481736324,20.17,139.78,139.7,25.0525]
[1720481736625,20.17,139.78,139.71,7.1575]
[1720481737026,20.17,139.78,139.7,17.8945]
[1720481738231,20.17,139.78,139.7,25.0525]
[1720481738437,20.17,139.78,139.7,17.8945]
[1720481738656,39.84,139.78,139.69,20.0]
[1720481738826,39.84,139.78,139.68,0.8678871]
[1720481739738,39.84,139.78,139.71,7.1573]
[1720481739956,39.84,139.78,139.7,17.8949]
[1720481740321,0.17,139.77,139.68,0.8678871]
[1720481740647,0.17,139.77,139.68,28.0269871]
[1720481741426,15.3835,139.76,139.68,28.0269871]
[1720481741743,0.34,139.75,139.68,0.8678871]
[1720481742343,0.34,139.75,139.68,8.0268871]
[1720481742531,0.34,139.75,139.69,7.1586]
[1720481743237,0.17,139.75,139.68,8.0269871]
[1720481744426,0.17,139.75,139.68,0.8678871]
[1720481745050,15.3835,139.76,139.7,7.1581]
[1720481745356,27.44787031,139.78,139.69,17.8962]
[1720481745550,27.44787031,139.78,139.71,7.1575]
[1720481745721,27.44787031,139.78,139.69,17.8962]
[1720481745926,27.44787031,139.78,139.69,25.0548]
[1720481746148,27.44787031,139.78,139.69,17.8962]
[1720481746334,27.44787031,139.78,139.69,25.0546]
[1720481746538,0.17,139.77,139.69,25.0546]
[1720481747329,0.17,139.77,139.68,0.8678871]
[1720481747330,0.17,139.75,139.68,0.8678871]
[1720481747530,20.17,139.75,139.68,0.8678871]
[1720481747748,20.0,139.75,139.68,0.8678871]
[1720481748254,20.0,139.75,139.68,8.0268871]
[1720481748759,20.0,139.75,139.68,0.8678871]
[1720481749830,20.0,139.75,139.68,8.0269871]
[1720481750230,21.7944,139.76,139.68,18.7646871]
[1720481751459,21.7944,139.76,139.69,7.1586]
[1720481752657,21.7944,139.76,139.68,25.9237871]
[1720481754051,21.7944,139.76,139.68,18.7646871]
[1720481755961,21.7944,139.76,139.69,7.1583]
[1720481756535,21.7944,139.76,139.68,25.9236871]
[1720481756735,7.44836895,139.78,139.68,25.9236871]
[1720481756943,20.0,139.77,139.68,25.9236871]
[1720481757160,20.0,139.77,139.68,18.7646871]
[1720481757337,27.11836895,139.78,139.68,18.7646871]
[1720481757538,27.11836895,139.78,139.69,7.1586]
[1720481758455,27.11836895,139.78,139.68,25.9236871]
[1720481758761,27.11836895,139.78,139.68,18.7646871]
[1720481759059,7.44836895,139.78,139.71,7.1576]
[1720481759264,7.44836895,139.78,139.7,25.0527]
[1720481759450,41.42914239,139.8,139.7,25.0527]
[1720481759653,48.87162377,139.8,139.73,7.1566]
[1720481759972,32.30943409,139.8,139.73,7.1566]
[1720481760154,32.30943409,139.8,139.74,7.156]
[1720481760462,9.1197083,139.83,139.74,25.0457]
[1720481760660,9.1197083,139.83,139.72,6.0463]
[1720481760661,18.59544239,139.83,139.72,6.0463]
[1720481760856,16.93522354,139.82,139.72,7.1571]
[1720481761252,16.93522354,139.82,139.73,7.1566]
[1720481761564,0.17,139.81,139.73,7.1566]
[1720481762558,16.93522354,139.82,139.74,7.1561]
[1720481763170,16.93522354,139.82,139.73,17.8908]
[1720481763354,36.60522354,139.82,139.72,7.1571]
[1720481763541,6.5109,139.81,139.7,17.8945]
[1720481763741,20.0,139.8,139.7,25.0526]
[1720481764453,0.17,139.79,139.7,25.0526]
[1720481765342,20.01,139.79,139.68,0.8678871]
[1720481765640,20.0,139.78,139.69,7.1583]
[1720481765848,20.0,139.78,139.68,8.0268871]
[1720481766055,20.0,139.78,139.69,7.1585]
[1720481767852,20.0,139.78,139.7,7.1578]
[1720481768670,30.6770083,139.81,139.75,7.1555]
[1720481768962,22.9591,139.9,139.86,7.1499]
[1720481769164,12.90668633,139.89,139.87,7.1494]
[1720481769371,36.0103,139.94,139.82,0.17]
[1720481769372,16.3403,139.94,139.82,0.17]
[1720481769562,12.90364493,139.93,139.86,17.8742]
[1720481769873,6.6188,139.95,139.82,26.7499]
[1720481769874,12.90247243,139.92,139.83,17.8784]
[1720481770044,6.6188,139.95,139.85,7.1504]
[1720481770252,12.90283919,139.94,139.85,7.1504]
[1720481770450,12.90283919,139.93,139.85,7.1504]
[1720481770653,12.90283919,139.92,139.85,7.1504]
[1720481770874,6.6188,139.95,139.85,7.1504]
[1720481771088,12.9033107,139.94,139.85,7.1504]
[1720481771378,12.9033107,139.93,139.85,17.8753]
[1720481771553,6.6188,139.95,139.85,17.8753]
[1720481771866,6.6188,139.95,139.87,7.1493]
[1720481772074,6.6188,139.95,139.85,17.8753]
[1720481772371,12.90125763,139.94,139.86,7.1496]
[1720481772582,6.6188,139.95,139.86,7.1496]
[1720481773068,6.6188,139.95,139.85,17.8753]
[1720481773069,6.6188,139.95,139.88,7.1487]
[1720481773370,7.43738391,139.97,139.92,25.014]
[1720481773548,20.0318653,140.04,139.92,17.8672]
[1720481773748,12.89729617,140.03,139.92,17.8672]
[1720481773953,12.89729617,140.02,139.95,17.863]
[1720481774251,7.43878085,140.04,139.93,7.1463]
[1720481774450,7.43878085,140.04,139.94,7.1458]
[1720481776174,7.43878085,140.04,139.95,7.1453]
[1720481776376,7.43878085,140.04,139.94,7.1458]
[1720481776569,7.43878085,140.04,139.95,7.1453]
[1720481777246,7.43878085,140.04,139.96,17.8615]
[1720481777669,7.43878085,140.04,139.93,17.8658]
[1720481777867,6.0267,140.02,139.89,21.6101]
[1720481778082,20.17,140.01,139.92,7.1469]
[1720481778260,20.0,140.01,139.89,21.6101]
[1720481779293,20.0,140.01,139.9,20.34]
[1720481779448,20.0,140.01,139.92,7.1464]
[1720481779962,20.0,140.01,139.91,25.0152]
[1720481780159,20.0,140.01,139.91,17.8679]
[1720481780573,20.0,140.01,139.93,7.1464]
[1720481781551,20.0,140.01,139.92,7.1469]
[1720481781759,20.0,140.01,139.91,25.0151]
[1720481782154,20.0,140.01,139.92,20.0]
[1720481783461,20.0,140.01,139.92,27.1467]
[1720481783665,20.0,140.01,139.93,7.1463]
[1720481783880,20.0,140.01,139.94,7.1458]
[1720481784393,20.0,140.01,139.93,7.1462]
[1720481785091,20.0,140.01,139.92,27.3167]
[1720481786578,20.0,140.01,139.93,17.8656]
[1720481786773,20.0,140.01,139.93,25.0118]
[1720481788676,0.17,140.0,139.92,20.0]
[1720481788988,0.17,140.0,139.91,27.317]
[1720481789367,0.17,140.0,139.92,7.1468]
[1720481789576,0.17,140.0,139.91,20.17]
[1720481789577,20.0,140.01,139.93,7.1464]
[1720481789991,6.0267,140.02,139.94,17.8644]
[1720481790171,6.0267,140.02,139.94,25.0101]
[1720481790492,6.0267,140.02,139.94,17.8644]
[1720481790660,20.0,140.01,139.91,37.8679]
[1720481791175,0.17,140.0,139.91,37.8679]
[1720481791369,0.17,140.0,139.91,45.0152]
[1720481791870,0.17,140.0,139.91,37.8679]
[1720481792064,0.17,140.0,139.92,0.17]
[1720481792688,0.17,140.0,139.93,7.1463]
[1720481793775,0.17,140.0,139.92,7.3168]
[1720481793972,0.17,140.0,139.91,45.0151]
[1720481794184,0.17,140.0,139.91,37.8679]
[1720481794381,0.34,140.0,139.91,20.0]
[1720481795171,0.34,140.0,139.9,7.1477]
[1720481795971,0.17,139.98,139.86,7.1495]
[1720481796279,20.34,139.98,139.86,7.1495]
[1720481796464,20.34,139.98,139.85,7.15]
[1720481796665,0.17,139.96,139.86,7.1499]
[1720481796885,20.34,139.96,139.86,7.1498]
[1720481797086,7.44984101,139.95,139.86,7.1498]
[1720481797289,20.17,139.94,139.87,7.1494]
[1720481797498,20.0,139.94,139.88,7.1488]
[1720481797791,19.67,139.97,139.89,7.1484]
[1720481798006,20.0,139.96,139.9,7.1476]
[1720481798672,20.0,139.98,139.9,7.1476]
[1720481798993,20.0,139.98,139.89,7.1483]
[1720481799289,0.17,139.97,139.89,7.1483]
[1720481800088,0.17,139.97,139.88,25.1906]
[1720481800413,0.17,139.97,139.88,17.8718]
[1720481800781,0.34,139.97,139.86,7.1498]
[1720481800979,0.34,139.97,139.87,20.0]
[1720481801679,0.34,139.97,139.87,27.1493]
[1720481801872,0.17,139.97,139.9,7.1479]
[1720481802071,0.17,139.97,139.87,37.873]
[1720481802300,0.17,139.97,139.88,0.17]
[1720481802694,0.17,139.97,139.89,7.148]
[1720481802901,20.0,139.98,139.91,7.147]
[1720481803284,20.0,139.98,139.9,0.17]
[1720481803285,20.0,139.98,139.9,7.3178]
[1720481803482,20.0,139.98,139.89,17.8699]
[1720481803793,20.0,139.98,139.89,25.018]
[1720481804298,20.0,139.98,139.9,0.17]
[1720481805399,20.0,139.98,139.9,7.3177]
[1720481806193,20.0,139.98,139.9,0.17]
[1720481807383,20.0,139.98,139.9,7.3179]
[1720481808102,20.0,139.98,139.9,0.17]
[1720481808278,20.0,139.98,139.92,7.1468]
[1720481810096,20.0,139.98,139.9,0.17]
[1720481810302,20.0,139.98,139.89,20.17]
[1720481811584,20.0,139.98,139.9,7.1478]
[1720481812996,0.17,139.97,139.89,27.1483]
[1720481813303,0.34,139.97,139.88,17.8714]
[1720481813685,0.17,139.97,139.89,7.1482]
[1720481814089,20.0,139.98,139.9,7.1478]
[1720481814618,12.89789771,139.97,139.9,7.1478]
[1720481814826,20.0,139.96,139.9,7.1478]
[1720481815382,20.17,139.98,139.9,7.1478]
[1720481815608,12.89789771,139.97,139.9,7.1478]
[1720481815784,32.89789771,139.96,139.89,7.1482]
[1720481816095,12.89855012,139.95,139.88,25.1903]
[1720481816288,20.0,139.96,139.88,17.8714]
[1720481816608,12.89912045,139.95,139.88,17.8714]
[1720481816808,0.17,139.93,139.85,25.0252]
[1720481817112,33.98865694,139.92,139.86,20.0]
[1720481817307,21.0879,139.92,139.86,20.0]
[1720481817483,21.0879,139.92,139.86,27.1496]
[1720481817687,21.0879,139.92,139.86,27.1498]
[1720481818086,21.0879,139.92,139.86,27.1496]
[1720481818305,21.0879,139.92,139.86,20.0]
[1720481819089,21.0879,139.92,139.86,27.1498]
[1720481820588,21.0879,139.92,139.86,20.0]
[1720481820884,21.0879,139.92,139.85,18.0452]
[1720481821094,21.0879,139.92,139.87,7.1491]
[1720481821493,21.0879,139.92,139.89,7.1483]
[1720481821692,15.8189,139.95,139.89,25.0181]
[1720481821907,20.0,139.94,139.87,7.1491]
[1720481822392,20.0,139.94,139.86,25.0238]
[1720481822592,20.0,139.94,139.87,7.1493]
[1720481823201,20.0,139.94,139.86,25.0238]
[1720481824311,20.0,139.94,139.87,0.17]
[1720481824497,20.0,139.94,139.89,7.1484]
[1720481824705,20.0,139.94,139.88,7.1488]
[1720481826609,22.2352,139.95,139.91,7.1473]
[1720481826807,22.2352,139.95,139.87,0.34]
[1720481827011,22.2352,139.95,139.9,25.0171]
[1720481827203,22.2352,139.95,139.9,17.8694]
[1720481828492,22.2352,139.95,139.87,44.862]
[1720481828808,22.2352,139.95,139.87,25.192]
[1720481829216,20.17,139.94,139.84,25.0273]
[1720481829420,0.17,139.93,139.84,25.0273]
[1720481832297,0.17,139.93,139.81,44.7025]
[1720481832619,0.17,139.91,139.78,272.77]
[1720481832926,24.05443124,139.91,139.8,7.1527]
[1720481833626,24.05443124,139.91,139.81,7.1523]
[1720481833800,20.34,139.91,139.81,7.1523]
[1720481834004,24.05443124,139.91,139.81,7.1523]
[1720481834215,20.34,139.91,139.8,17.8821]
[1720481834603,20.34,139.91,139.83,7.1514]
[1720481835104,20.34,139.91,139.82,25.0314]
[1720481835604,20.34,139.91,139.79,17.8832]
[1720481835799,20.34,139.91,139.8,20.0]
[1720481836007,20.34,139.91,139.76,17.8869]
[1720481836008,0.17,139.87,139.76,17.8869]
[1720481836233,0.34,139.87,139.76,17.8869]
[1720481836408,20.34,139.87,139.76,17.8869]
[1720481836614,20.34,139.87,139.78,7.1537]